fUST/lending_fUST_20250713
["ID","MTS","AMOUNT","RATE_DAILY","PERIOD"]
[371744929,1752413442494,-460.0,0.00016712,2]
[371744930,1752413442505,-498.82,0.00016712,2]
[371744931,1752413442514,-640.36,0.00016712,2]
[371744932,1752413442523,-460.0,0.00016712,2]
[371744933,1752413442534,-460.0,0.00016712,2]
[371744934,1752413442544,-460.0,0.00016712,2]
[371744935,1752413442554,-265.31216949,0.00016712,2]
[371744936,1752413442563,-465.22915566,0.00016712,2]
[371744937,1752413442572,-460.0,0.00016712,2]
[371744938,1752413442583,-460.0,0.00016712,2]
[371744939,1752413442593,-460.0,0.00016712,2]
[371744940,1752413442603,-460.0,0.00016712,2]
[371744941,1752413442612,-501.61,0.00016712,2]
[371744942,1752413442623,-460.0,0.00016712,2]
[371744943,1752413442632,-1627.73,0.00016712,2]
[371744944,1752413442647,-1279.12,0.00016712,2]
[371744945,1752413442656,-460.0,0.00016712,2]
[371744946,1752413442666,-460.0,0.00016712,2]
[371744947,1752413442675,-460.0,0.00016712,2]
[371744948,1752413442685,-460.0,0.00016712,2]
[371744949,1752413442694,-460.0,0.00016712,2]
[371744950,1752413442703,-460.0,0.00016712,2]
[371744951,1752413442713,-460.0,0.00016712,2]
[371744952,1752413442723,-460.0,0.00016712,2]
[371744953,1752413442732,-460.0,0.00016712,2]
[371744954,1752413442742,-460.0,0.00016712,2]
[371744955,1752413442751,-460.0,0.00016712,2]
[371744956,1752413442761,-460.0,0.00016712,2]
[371744957,1752413442770,-824.22,0.00016712,2]
[371744959,1752413442779,-460.0,0.00016712,2]
[371744960,1752413442788,-460.0,0.00016712,2]
[371744962,1752413442798,-460.0,0.00016712,2]
[371744963,1752413442808,-726.04,0.00016712,2]
[371744964,1752413442817,-460.0,0.00016712,2]
[371744966,1752413442827,-460.0,0.00016712,2]
[371744967,1752413442836,-1255.46,0.00016712,2]
[371744968,1752413442845,-460.0,0.00016712,2]
[371744969,1752413442860,-460.0,0.00016712,2]
[371744970,1752413442870,-460.0,0.00016712,2]
[371744971,1752413442879,-460.0,0.00016712,2]
[371744973,1752413442889,-460.0,0.00016712,2]
[371744974,1752413442899,-460.0,0.00016712,2]
[371744976,1752413442908,-460.0,0.00016712,2]
[371744977,1752413442917,-257.35,0.00016712,2]
[371744978,1752413442928,-460.0,0.00016712,2]
[371744979,1752413442937,-570.95,0.00016712,2]
[371744980,1752413442946,-460.0,0.00016712,2]
[371744982,1752413442955,-1582.65,0.00016712,2]
[371744984,1752413442964,-460.0,0.00016712,2]
[371744986,1752413442973,-528.12,0.00016712,2]
[371744988,1752413442983,-460.0,0.00016712,2]
[371744989,1752413442992,-460.0,0.00016712,2]
[371744990,1752413443001,-460.0,0.00016712,2]
[371744992,1752413443010,-652.52,0.00016712,2]
[371744993,1752413443020,-460.0,0.00016712,2]
[371744996,1752413443029,-460.0,0.00016712,2]
[371744997,1752413443039,-1639.75,0.00016712,2]
[371744998,1752413443049,-460.0,0.00016712,2]
[371744999,1752413443059,-460.0,0.00016712,2]
[371745000,1752413443070,-460.0,0.00016712,2]
[371745001,1752413443083,-460.0,0.00016712,2]
[371745002,1752413443092,-460.0,0.00016712,2]
[371745003,1752413443102,-460.0,0.00016712,2]
[371745004,1752413443111,-519.91,0.00016712,2]
[371745005,1752413443121,-460.0,0.00016712,2]
[371745006,1752413443130,-460.0,0.00016712,2]
[371745007,1752413443140,-460.0,0.00016712,2]
[371745008,1752413443149,-460.0,0.00016712,2]
[371745009,1752413443159,-460.0,0.00016712,2]
[371745010,1752413443168,-460.0,0.00016712,2]
[371745011,1752413443178,-460.0,0.00016712,2]
[371745012,1752413443187,-500.0,0.00016773,2]
[371745013,1752413443197,-500.65935702,0.00016773,2]
[371745014,1752413443206,-500.0,0.00016773,2]
[371745015,1752413443215,-500.0,0.00016773,2]
[371745016,1752413443225,-500.0,0.00016773,2]
[371745017,1752413443235,-500.0,0.00016773,2]
[371745018,1752413443244,-500.0,0.00016773,2]
[371745019,1752413443253,-500.0,0.00016773,2]
[371745020,1752413443262,-500.0,0.00016773,2]
[371745021,1752413443271,-500.0,0.00016773,2]
[371745023,1752413443280,-500.0,0.00016773,2]
[371745025,1752413443289,-500.0,0.00016773,2]
[371745027,1752413443299,-442.34543898,0.00016773,2]
[371745028,1752413443308,-500.0,0.00016773,2]
[371745029,1752413443317,-206.86222941,0.00016773,2]
[371745030,1752413443327,-160.87458032,0.00016773,2]
[371745031,1752413443336,-502.09627277,0.00016773,2]
[371745032,1752413443345,-500.0,0.00016773,2]
[371745033,1752413443355,-512.15400389,0.00016773,2]
[371745034,1752413443365,-500.0,0.00016773,2]
[371745035,1752413443375,-315.50837465,0.00016773,2]
[371745036,1752413443385,-500.0,0.00016773,2]
[371745037,1752413443396,-172.73037819,0.00016773,2]
[371745038,1752413443405,-500.0,0.00016773,2]
[371745039,1752413443415,-166.65332895,0.00016773,2]
[371745040,1752413443425,-500.0,0.00016773,2]
[371745041,1752413443434,-500.0,0.00016773,2]
[371745042,1752413443444,-500.0,0.00016773,2]
[371745043,1752413443453,-500.0,0.00016773,2]
[371745044,1752413443463,-500.0,0.00016773,2]
[371745045,1752413443472,-326.39071524,0.00016773,2]
[371745046,1752413443481,-500.0,0.00016773,2]
[371745047,1752413443491,-500.0,0.00016773,2]
[371745048,1752413443501,-501.93154519,0.00016773,2]
[371745049,1752413443511,-500.0,0.00016773,2]
[371745050,1752413443520,-500.0,0.00016773,2]
[371745051,1752413443530,-500.0,0.00016773,2]
[371745052,1752413443540,-500.0,0.00016773,2]
[371745053,1752413443550,-598.50210147,0.00016773,2]
[371745055,1752413443560,-500.0,0.00016773,2]
[371745057,1752413443570,-500.0,0.00016773,2]
[371745059,1752413443581,-500.0,0.00016773,2]
[371745061,1752413443591,-150.42695821,0.00016773,2]
[371745063,1752413443601,-500.0,0.00016773,2]
[371745065,1752413443611,-157.27027721,0.00016773,2]
[371745067,1752413443621,-154.76755788,0.00016773,2]
[371745069,1752413443631,-500.0,0.00016773,2]
[371745071,1752413443641,-500.0,0.00016773,2]
[371745073,1752413443650,-500.0,0.00016773,2]
[371745075,1752413443660,-500.0,0.00016773,2]
[371745077,1752413443670,-500.0,0.00016773,2]
[371745079,1752413443680,-500.0,0.00016773,2]
[371745081,1752413443690,-257.51909905,0.00016773,2]
[371745083,1752413443700,-500.0,0.00016773,2]
[371745085,1752413443710,-500.0,0.00016773,2]
[371745087,1752413443719,-161.248297,0.00016974,2]
[371745089,1752413443729,-151.0,0.00016986,2]
[371745091,1752413443738,-151.0,0.00016986,2]
[371745093,1752413443747,-460.0,0.00016986,2]
[371745095,1752413443757,-151.0,0.00016986,2]
[371745097,1752413443766,-151.0,0.00016986,2]
[371745099,1752413443775,-151.0,0.00016986,2]
[371745101,1752413443785,-460.0,0.00016986,2]
[371745102,1752413443794,-460.0,0.00016986,2]
[371745103,1752413443804,-460.0,0.00016986,2]
[371745104,1752413443813,-460.0,0.00016986,2]
[371745105,1752413443822,-211.341786,0.00016986,2]
[371745106,1752413443833,-211.341786,0.00016986,2]
[371745107,1752413443842,-460.0,0.00016986,2]
[371745108,1752413443853,-460.0,0.00016986,2]
[371745109,1752413443864,-460.0,0.00016986,2]
[371745110,1752413443875,-460.0,0.00016986,2]
[371745111,1752413443884,-460.0,0.00016986,2]
[371745112,1752413443895,-460.0,0.00016986,2]
[371745113,1752413443904,-440.03700064,0.00016986,2]
[371745114,1752413443914,-460.0,0.00016986,2]
[371745115,1752413443923,-460.0,0.00016986,2]
[371745116,1752413443933,-460.0,0.00016986,2]
[371745117,1752413443942,-460.0,0.00016986,2]
[371745118,1752413443952,-460.0,0.00016986,2]
[371745119,1752413443961,-460.0,0.00016986,2]
[371745120,1752413443970,-460.0,0.00016986,2]
[371745121,1752413443979,-460.0,0.00016986,2]
[371745122,1752413443988,-468.36572645,0.00016986,2]
[371745123,1752413443998,-460.0,0.00016986,2]
[371745124,1752413444008,-460.0,0.00016986,2]
[371745125,1752413444018,-460.0,0.00016986,2]
[371745126,1752413444028,-460.0,0.00016986,2]
[371745127,1752413444038,-460.0,0.00016986,2]
[371745128,1752413444047,-460.0,0.00016986,2]
[371745129,1752413444057,-460.0,0.00016986,2]
[371745130,1752413444067,-460.0,0.00016986,2]
[371745131,1752413444077,-498.82,0.00016986,2]
[371745132,1752413444087,-640.36,0.00016986,2]
[371745133,1752413444096,-460.0,0.00016986,2]
[371745134,1752413444105,-460.0,0.00016986,2]
[371745135,1752413444115,-460.0,0.00016986,2]
[371745136,1752413444124,-460.0,0.00016986,2]
[371745137,1752413444134,-460.0,0.00016986,2]
[371745138,1752413444144,-1627.73,0.00016986,2]
[371745139,1752413444153,-1279.12,0.00016986,2]
[371745140,1752413444163,-460.0,0.00016986,2]
[371745141,1752413444172,-460.0,0.00016986,2]
[371745142,1752413444183,-460.0,0.00016986,2]
[371745143,1752413444192,-460.0,0.00016986,2]
[371745144,1752413444203,-460.0,0.00016986,2]
[371745145,1752413444212,-460.0,0.00016986,2]
[371745146,1752413444221,-460.0,0.00016986,2]
[371745147,1752413444230,-460.0,0.00016986,2]
[371745148,1752413444240,-824.22,0.00016986,2]
[371745149,1752413444249,-460.0,0.00016986,2]
[371745150,1752413444259,-460.0,0.00016986,2]
[371745151,1752413444268,-460.0,0.00016986,2]
[371745152,1752413444278,-726.04,0.00016986,2]
[371745153,1752413444288,-460.0,0.00016986,2]
[371745155,1752413444297,-1255.46,0.00016986,2]
[371745157,1752413444306,-460.0,0.00016986,2]
[371745159,1752413444315,-219.44,0.00016986,2]
[371745160,1752413444324,-460.0,0.00016986,2]
[371745161,1752413444335,-156.31843284,0.00016986,2]
[371745162,1752413444345,-460.0,0.00016986,2]
[371745163,1752413444355,-570.95,0.00016986,2]
[371745164,1752413444364,-460.0,0.00016986,2]
[371745165,1752413444374,-460.0,0.00016986,2]
[371745166,1752413444383,-1582.65,0.00016986,2]
[371745167,1752413444393,-528.12,0.00016986,2]
[371745168,1752413444403,-460.0,0.00016986,2]
[371745169,1752413444413,-460.0,0.00016986,2]
[371745170,1752413444423,-652.52,0.00016986,2]
[371745171,1752413444432,-460.0,0.00016986,2]
[371745172,1752413444442,-460.0,0.00016986,2]
[371745173,1752413444451,-1639.75,0.00016986,2]
[371745174,1752413444461,-460.0,0.00016986,2]
[371745175,1752413444470,-460.0,0.00016986,2]
[371745176,1752413444480,-460.0,0.00016986,2]
[371745177,1752413444489,-460.0,0.00016986,2]
[371745178,1752413444498,-460.0,0.00016986,2]
[371745179,1752413444509,-460.0,0.00016986,2]
[371745180,1752413444518,-460.0,0.00016986,2]
[371745181,1752413444527,-460.0,0.00016986,2]
[371745182,1752413444537,-460.0,0.00016986,2]
[371745183,1752413444547,-525.32257468,0.00016986,2]
[371745184,1752413444556,-460.0,0.00016986,2]
[371745185,1752413444566,-151.0,0.0001726,2]
[371745186,1752413444576,-151.0,0.0001726,2]
[371745187,1752413444586,-460.0,0.0001726,2]
[371745188,1752413444595,-151.0,0.0001726,2]
[371745189,1752413444605,-460.0,0.0001726,2]
[371745190,1752413444615,-460.0,0.0001726,2]
[371745191,1752413444625,-460.0,0.0001726,2]
[371745192,1752413444634,-460.0,0.0001726,2]
[371745193,1752413444662,-216.84161138,0.0001726,2]
[371745194,1752413444672,-460.0,0.0001726,2]
[371745195,1752413444681,-460.0,0.0001726,2]
[371745196,1752413444691,-460.0,0.0001726,2]
[371745197,1752413444700,-460.0,0.0001726,2]
[371745198,1752413444710,-318.55648491,0.0001726,2]
[371745199,1752413444720,-213.91592102,0.0001726,2]
[371745200,1752413444729,-283.35163415,0.0001726,2]
[371745201,1752413444739,-460.0,0.0001726,2]
[371745202,1752413444748,-381.43,0.0001726,2]
[371745203,1752413444758,-460.0,0.0001726,2]
[371745204,1752413444767,-460.0,0.0001726,2]
[371745205,1752413444777,-408.03,0.0001726,2]
[371745206,1752413444786,-460.0,0.0001726,2]
[371745207,1752413444795,-460.0,0.0001726,2]
[371745208,1752413444805,-460.0,0.0001726,2]
[371745209,1752413444815,-460.0,0.0001726,2]
[371745210,1752413444824,-460.0,0.0001726,2]
[371745211,1752413444834,-498.82,0.0001726,2]
[371745212,1752413444843,-640.36,0.0001726,2]
[371745213,1752413444854,-460.0,0.0001726,2]
[371745214,1752413444863,-460.0,0.0001726,2]
[371745215,1752413444873,-460.0,0.0001726,2]
[371745216,1752413444882,-460.0,0.0001726,2]
[371745217,1752413444892,-1627.73,0.0001726,2]
[371745218,1752413444902,-1279.12,0.0001726,2]
[371745219,1752413444911,-460.0,0.0001726,2]
[371745220,1752413444921,-460.0,0.0001726,2]
[371745221,1752413444933,-460.0,0.0001726,2]
[371745222,1752413444944,-460.0,0.0001726,2]
[371745223,1752413444955,-460.0,0.0001726,2]
[371745224,1752413444964,-460.0,0.0001726,2]
[371745225,1752413444974,-460.0,0.0001726,2]
[371745226,1752413444983,-460.0,0.0001726,2]
[371745227,1752413444993,-151.0,0.0001726,2]
[371745228,1752413445003,-824.22,0.0001726,2]
[371745229,1752413445013,-460.0,0.0001726,2]
[371745230,1752413445023,-460.0,0.0001726,2]
[371745231,1752413445032,-460.0,0.0001726,2]
[371745232,1752413445042,-726.04,0.0001726,2]
[371745233,1752413445052,-460.0,0.0001726,2]
[371745234,1752413445062,-1255.46,0.0001726,2]
[371745235,1752413445072,-460.0,0.0001726,2]
[371745236,1752413445083,-460.0,0.0001726,2]
[371745237,1752413445093,-460.0,0.0001726,2]
[371745238,1752413445102,-570.95,0.0001726,2]
[371745239,1752413445111,-460.0,0.0001726,2]
[371745240,1752413445121,-151.0,0.0001726,2]
[371745241,1752413445131,-460.0,0.0001726,2]
[371745242,1752413445140,-1582.65,0.0001726,2]
[371745243,1752413445150,-528.12,0.0001726,2]
[371745244,1752413445159,-215.847281,0.0001726,2]
[371745245,1752413445170,-460.0,0.0001726,2]
[371745246,1752413445179,-460.0,0.0001726,2]
[371745247,1752413445190,-652.52,0.0001726,2]
[371745248,1752413445200,-460.0,0.0001726,2]
[371745249,1752413445211,-460.0,0.0001726,2]
[371745250,1752413445324,-1639.75,0.0001726,2]
[371745251,1752413445336,-549.6,0.0001726,2]
[371745252,1752413445345,-460.0,0.0001726,2]
[371745253,1752413445355,-460.0,0.0001726,2]
[371745254,1752413445365,-460.0,0.0001726,2]
[371745255,1752413445374,-460.0,0.0001726,2]
[371745256,1752413445384,-460.0,0.0001726,2]
[371745257,1752413445394,-460.0,0.0001726,2]
[371745258,1752413445404,-460.0,0.0001726,2]
[371745259,1752413445413,-272.86,0.0001726,2]
[371745260,1752413445423,-460.0,0.0001726,2]
[371745261,1752413445433,-500.0,0.00017321,2]
[371745262,1752413445442,-500.0,0.00017321,2]
[371745263,1752413445452,-500.0,0.00017321,2]
[371745264,1752413445462,-1000.0,0.00017321,2]
[371745265,1752413445471,-501.71534255,0.00017321,2]
[371745266,1752413445481,-500.0,0.00017321,2]
[371745267,1752413445491,-500.0,0.00017321,2]
[371745268,1752413445500,-433.76250258,0.00017321,2]
[371745269,1752413445510,-500.0,0.00017321,2]
[371745270,1752413445519,-151.0,0.00017321,2]
[371745271,1752413445529,-211.341786,0.00017321,2]
[371745272,1752413445539,-211.341786,0.00017321,2]
[371745273,1752413445549,-3223.01849731,0.00017362,2]
[371745274,1752413445559,-160.0,0.00017433,2]
[371745275,1752413445569,-460.0,0.00017534,2]
[371745276,1752413445579,-460.0,0.00017534,2]
[371745277,1752413445588,-460.0,0.00017534,2]
[371745278,1752413445598,-460.0,0.00017534,2]
[371745279,1752413445608,-460.0,0.00017534,2]
[371745280,1752413445618,-460.0,0.00017534,2]
[371745281,1752413445628,-460.0,0.00017534,2]
[371745282,1752413445638,-460.0,0.00017534,2]
[371745283,1752413445647,-460.0,0.00017534,2]
[371745284,1752413445658,-460.0,0.00017534,2]
[371745285,1752413445668,-460.0,0.00017534,2]
[371745286,1752413445677,-460.0,0.00017534,2]
[371745287,1752413445686,-460.0,0.00017534,2]
[371745288,1752413445696,-498.82,0.00017534,2]
[371745289,1752413445705,-640.36,0.00017534,2]
[371745290,1752413445715,-460.0,0.00017534,2]
[371745291,1752413445725,-460.0,0.00017534,2]
[371745292,1752413445736,-460.0,0.00017534,2]
[371745293,1752413445746,-460.0,0.00017534,2]
[371745294,1752413445755,-1627.73,0.00017534,2]
[371745295,1752413445765,-1279.12,0.00017534,2]
[371745296,1752413445774,-460.0,0.00017534,2]
[371745297,1752413445784,-460.0,0.00017534,2]
[371745298,1752413445793,-460.0,0.00017534,2]
[371745299,1752413445802,-460.0,0.00017534,2]
[371745300,1752413445812,-460.0,0.00017534,2]
[371745301,1752413445821,-460.0,0.00017534,2]
[371745302,1752413445832,-460.0,0.00017534,2]
[371745303,1752413445842,-460.0,0.00017534,2]
[371745304,1752413445854,-824.22,0.00017534,2]
[371745306,1752413445864,-460.0,0.00017534,2]
[371745307,1752413445874,-460.0,0.00017534,2]
[371745308,1752413445883,-460.0,0.00017534,2]
[371745309,1752413445894,-726.04,0.00017534,2]
[371745310,1752413445904,-460.0,0.00017534,2]
[371745311,1752413445913,-1255.46,0.00017534,2]
[371745312,1752413445923,-460.0,0.00017534,2]
[371745313,1752413445934,-460.0,0.00017534,2]
[371745314,1752413445944,-432.39226932,0.00017534,2]
[371745315,1752413445953,-570.95,0.00017534,2]
[371745316,1752413445963,-460.0,0.00017534,2]
[371745317,1752413445973,-291.17,0.00017534,2]
[371745318,1752413445982,-1582.65,0.00017534,2]
[371745319,1752413445992,-528.12,0.00017534,2]
[371745320,1752413446001,-460.0,0.00017534,2]
[371745321,1752413446011,-652.52,0.00017534,2]
[371745322,1752413446022,-460.0,0.00017534,2]
[371745323,1752413446031,-460.0,0.00017534,2]
[371745324,1752413446041,-1639.75,0.00017534,2]
[371745325,1752413446050,-460.0,0.00017534,2]
[371745326,1752413446060,-460.0,0.00017534,2]
[371745327,1752413446070,-460.0,0.00017534,2]
[371745328,1752413446082,-460.0,0.00017534,2]
[371745329,1752413446092,-460.0,0.00017534,2]
[371745330,1752413446102,-460.0,0.00017534,2]
[371745331,1752413446111,-460.0,0.00017534,2]
[371745332,1752413446120,-213.42416991,0.000176,2]
[371745333,1752413446130,-161.248297,0.00017745,2]
[371745334,1752413446140,-823.42,0.00017798,3]
[371745335,1752413446150,-411.72,0.00017798,3]
[371745336,1752413446159,-151.0,0.00017808,2]
[371745337,1752413446169,-151.0,0.00017808,2]
[371745338,1752413446178,-152.352028,0.00017808,2]
[371745339,1752413446187,-151.0,0.00017808,2]
[371745340,1752413446196,-200.0,0.00017808,2]
[371745341,1752413446206,-211.341786,0.00017808,2]
[371745342,1752413446215,-211.341786,0.00017808,2]
[371745343,1752413446225,-460.0,0.00017808,2]
[371745344,1752413446235,-460.0,0.00017808,2]
[371745345,1752413446245,-460.0,0.00017808,2]
[371745346,1752413446254,-460.0,0.00017808,2]
[371745347,1752413446264,-460.0,0.00017808,2]
[371745348,1752413446273,-460.0,0.00017808,2]
[371745349,1752413446283,-460.0,0.00017808,2]
[371745350,1752413446292,-460.0,0.00017808,2]
[371745351,1752413446302,-460.0,0.00017808,2]
[371745352,1752413446311,-467.65174943,0.00017808,2]
[371745353,1752413446321,-460.0,0.00017808,2]
[371745355,1752413446332,-498.82,0.00017808,2]
[371745357,1752413446342,-640.36,0.00017808,2]
[371745359,1752413446352,-460.0,0.00017808,2]
[371745361,1752413446361,-333.72,0.00017808,2]
[371745362,1752413446371,-460.0,0.00017808,2]
[371745363,1752413446381,-460.0,0.00017808,2]
[371745364,1752413446390,-1627.73,0.00017808,2]
[371745365,1752413446400,-1279.12,0.00017808,2]
[371745366,1752413446409,-460.0,0.00017808,2]
[371745367,1752413446418,-460.0,0.00017808,2]
[371745368,1752413446427,-460.0,0.00017808,2]
[371745369,1752413446436,-460.0,0.00017808,2]
[371745370,1752413446446,-460.0,0.00017808,2]
[371745371,1752413446455,-460.0,0.00017808,2]
[371745372,1752413446466,-460.0,0.00017808,2]
[371745373,1752413446476,-460.0,0.00017808,2]
[371745374,1752413446486,-824.22,0.00017808,2]
[371745375,1752413446497,-460.0,0.00017808,2]
[371745376,1752413446508,-460.0,0.00017808,2]
[371745377,1752413446517,-460.0,0.00017808,2]
[371745378,1752413446528,-726.04,0.00017808,2]
[371745379,1752413446538,-460.0,0.00017808,2]
[371745380,1752413446547,-1255.46,0.00017808,2]
[371745381,1752413446557,-460.0,0.00017808,2]
[371745382,1752413446567,-460.0,0.00017808,2]
[371745383,1752413446576,-570.95,0.00017808,2]
[371745384,1752413446586,-460.0,0.00017808,2]
[371745385,1752413446596,-1582.65,0.00017808,2]
[371745386,1752413446605,-528.12,0.00017808,2]
[371745387,1752413446615,-460.0,0.00017808,2]
[371745388,1752413446624,-652.52,0.00017808,2]
[371745389,1752413446633,-460.0,0.00017808,2]
[371745390,1752413446643,-460.0,0.00017808,2]
[371745391,1752413446653,-1639.75,0.00017808,2]
[371745392,1752413446662,-460.0,0.00017808,2]
[371745393,1752413446672,-460.0,0.00017808,2]
[371745394,1752413446682,-244.26,0.00017808,2]
[371745395,1752413446691,-460.0,0.00017808,2]
[371745396,1752413446701,-460.0,0.00017808,2]
[371745397,1752413446710,-460.0,0.00017808,2]
[371745398,1752413446720,-460.0,0.00017808,2]
[371745399,1752413446729,-1500.0,0.00017868,2]
[371745400,1752413446738,-420.0,0.00017963,2]
[371745401,1752413446748,-890.37013431,0.0001798,2]
[371745402,1752413446757,-260.0,0.00017981,2]
[371745403,1752413446766,-151.0,0.00018015,2]
[371745404,1752413446776,-211.341786,0.00018015,2]
[371745405,1752413446785,-211.341786,0.00018015,2]
[371745406,1752413446795,-160.0,0.00018074,2]
[371745407,1752413446804,-160.0,0.00018074,2]
[371745408,1752413446813,-160.0,0.00018074,2]
[371745409,1752413446823,-160.0,0.00018074,2]
[371745411,1752413446834,-230.68503973,0.00018074,2]
[371745413,1752413446843,-214.29528141,0.00018074,2]
[371745414,1752413446853,-12598.31844336,0.00018074,2]
[371745415,1752413446863,-838.53376533,0.00018074,2]
[371745416,1752413446873,-160.0,0.00018082,2]
[371745417,1752413446882,-151.0,0.00018082,2]
[371745419,1752413446892,-151.0,0.00018082,2]
[371745421,1752413446902,-151.0,0.00018082,2]
[371745422,1752413446911,-151.0,0.00018082,2]
[371745423,1752413446920,-460.0,0.00018082,2]
[371745424,1752413446932,-460.0,0.00018082,2]
[371745425,1752413446942,-460.0,0.00018082,2]
[371745426,1752413446951,-460.0,0.00018082,2]
[371745427,1752413446961,-460.0,0.00018082,2]
[371745428,1752413446970,-460.0,0.00018082,2]
[371745429,1752413446979,-460.0,0.00018082,2]
[371745430,1752413446988,-460.0,0.00018082,2]
[371745431,1752413446997,-483.55,0.00018082,2]
[371745432,1752413447006,-498.82,0.00018082,2]
[371745433,1752413447016,-640.36,0.00018082,2]
[371745434,1752413447026,-460.0,0.00018082,2]
[371745435,1752413447035,-460.0,0.00018082,2]
[371745436,1752413447044,-460.0,0.00018082,2]
[371745437,1752413447053,-1627.73,0.00018082,2]
[371745438,1752413447063,-1279.12,0.00018082,2]
[371745439,1752413447072,-460.0,0.00018082,2]
[371745440,1752413447082,-460.0,0.00018082,2]
[371745441,1752413447092,-460.0,0.00018082,2]
[371745442,1752413447101,-460.0,0.00018082,2]
[371745443,1752413447110,-460.0,0.00018082,2]
[371745444,1752413447120,-460.0,0.00018082,2]
[371745445,1752413447129,-460.0,0.00018082,2]
[371745446,1752413447139,-460.0,0.00018082,2]
[371745447,1752413447148,-151.0,0.00018082,2]
[371745448,1752413447157,-824.22,0.00018082,2]
[371745449,1752413447167,-460.0,0.00018082,2]
[371745450,1752413447177,-460.0,0.00018082,2]
[371745451,1752413447186,-726.04,0.00018082,2]
[371745452,1752413447196,-460.0,0.00018082,2]
[371745453,1752413447205,-1255.46,0.00018082,2]
[371745454,1752413447215,-460.0,0.00018082,2]
[371745455,1752413447224,-460.0,0.00018082,2]
[371745456,1752413447235,-570.95,0.00018082,2]
[371745457,1752413447244,-460.0,0.00018082,2]
[371745458,1752413447254,-1582.65,0.00018082,2]
[371745459,1752413447263,-528.12,0.00018082,2]
[371745460,1752413447272,-460.0,0.00018082,2]
[371745461,1752413447282,-652.52,0.00018082,2]
[371745462,1752413447292,-460.0,0.00018082,2]
[371745463,1752413447301,-460.0,0.00018082,2]
[371745464,1752413447311,-1639.75,0.00018082,2]
[371745465,1752413447320,-460.0,0.00018082,2]
[371745466,1752413447330,-460.0,0.00018082,2]
[371745467,1752413447339,-460.0,0.00018082,2]
[371745468,1752413447348,-460.0,0.00018082,2]
[371745469,1752413447358,-460.0,0.00018082,2]
[371745470,1752413447368,-1276.11342873,0.00018335,2]
[371745471,1752413447377,-460.0,0.00018356,2]
[371745472,1752413447386,-182.5152211,0.00018356,2]
[371745473,1752413447396,-460.0,0.00018356,2]
[371745474,1752413447406,-460.0,0.00018356,2]
[371745475,1752413447415,-460.0,0.00018356,2]
[371745476,1752413447426,-460.0,0.00018356,2]
[371745477,1752413447436,-460.0,0.00018356,2]
[371745478,1752413447446,-460.0,0.00018356,2]
[371745479,1752413447455,-460.0,0.00018356,2]